lending/lending_fUSD_20240110
["ID","MTS","AMOUNT","RATE_DAILY","PERIOD"]
[311036439,1704881440156,-500.0,0.00030136,2]
[311036441,1704881440166,-844.16,0.00030136,2]
[311036443,1704881440175,-526.54,0.00030136,2]
[311036446,1704881440186,-500.0,0.00030136,2]
[311036448,1704881440196,-500.0,0.00030136,2]
[311036450,1704881440206,-1347.35,0.00030136,2]
[311036454,1704881440219,-767.52,0.00030136,2]
[311036456,1704881440229,-1150.22,0.00030136,2]
[311036458,1704881440239,-951.52,0.00030136,2]
[311036460,1704881440249,-500.0,0.00030136,2]
[311036462,1704881440259,-1395.26,0.00030136,2]
[311036464,1704881440269,-500.0,0.00030136,2]
[311036466,1704881440278,-619.56,0.00030136,2]
[311036468,1704881440288,-500.0,0.00030136,2]
[311036470,1704881440298,-448.59128304,0.00030136,2]
[311036580,1704881441947,-158.18730557,0.000254,2]
[311036581,1704881441957,-2807.3,0.00029488,10]
[311036582,1704881441967,-51.40871696,0.00030136,2]
[311036583,1704881441977,-1477.81,0.00030136,2]
[311036584,1704881441986,-500.0,0.00030136,2]
[311036585,1704881441995,-799.47,0.00030136,2]
[311036586,1704881442005,-500.0,0.00030136,2]
[311036587,1704881442014,-875.06,0.00030136,2]
[311036588,1704881442024,-500.0,0.00030136,2]
[311036589,1704881442037,-906.95,0.00030136,2]
[311036590,1704881442046,-1640.49,0.00030136,2]
[311036591,1704881442056,-500.0,0.00030136,2]
[311036592,1704881442066,-1157.88,0.00030136,2]
[311036593,1704881442076,-502.50205638,0.00030136,2]
[311036594,1704881442086,-1196.65,0.00030136,2]
[311036595,1704881442096,-500.0,0.00030136,2]
[311036596,1704881442105,-387.26490723,0.00030136,2]
[311036597,1704881442132,-112.73509277,0.00030136,2]
[311036598,1704881442145,-798.35,0.00030136,2]
[311036599,1704881442155,-500.0,0.00030136,2]
[311036600,1704881442166,-12.35490723,0.00030136,2]
[311036601,1704881442187,-1091.64509277,0.00030136,2]
[311036602,1704881442198,-1549.84,0.00030136,2]
[311036603,1704881442209,-533.17886848,0.00030136,2]
[311036604,1704881442221,-349.38113152,0.00030136,2]
[311036605,1704881442231,-500.0,0.00030136,2]
[311036606,1704881442242,-500.0,0.00030136,2]
[311036607,1704881442253,-500.0,0.00030136,2]
[311036608,1704881442264,-500.0,0.00030136,2]
[311036609,1704881442275,-500.0,0.00030136,2]
[311036610,1704881442286,-500.0,0.00030136,2]
[311036611,1704881442296,-500.0,0.00030136,2]
[311036612,1704881442307,-500.0,0.00030136,2]
[311036613,1704881442317,-723.77,0.00030136,2]
[311036614,1704881442327,-500.0,0.00030136,2]
[311036615,1704881442338,-505.94,0.00030136,2]
[311036616,1704881442348,-502.24217214,0.00030136,2]
[311036617,1704881442357,-2033.84,0.00030136,2]
[311036618,1704881442366,-500.0,0.00030136,2]
[311036619,1704881442376,-1630.86,0.00030136,2]
[311036620,1704881442385,-500.0,0.00030136,2]
[311036621,1704881442395,-500.0,0.00030136,2]
[311036622,1704881442405,-1334.81,0.00030136,2]
[311036623,1704881442414,-850.38,0.00030136,2]
[311036624,1704881442424,-526.68382779,0.00030136,2]
[311036625,1704881442435,-500.0,0.00030136,2]
[311036626,1704881442446,-624.54,0.00030136,2]
[311036627,1704881442455,-500.0,0.00030136,2]
[311036628,1704881442465,-871.4,0.00030136,2]
[311036629,1704881442474,-500.0,0.00030136,2]
[311036630,1704881442485,-600.34,0.00030136,2]
[311036631,1704881442494,-976.06,0.00030136,2]
[311036632,1704881442503,-913.88,0.00030136,2]
[311036633,1704881442513,-500.0,0.00030136,2]
[311036635,1704881442523,-586.06138323,0.00030136,2]
[311036637,1704881442533,-915.94,0.00030136,2]
[311036639,1704881442543,-500.0,0.00030136,2]
[311036641,1704881442552,-500.0,0.00030136,2]
[311036643,1704881442562,-500.0,0.00030136,2]
[311036644,1704881442572,-1000.0,0.00030136,7]
[311036645,1704881442580,-500.0,0.00030136,2]
[311036647,1704881442590,-782.58,0.00030136,2]
[311036649,1704881442599,-501.42525964,0.00030136,2]
[311036651,1704881442608,-500.0,0.00030136,2]
[311036652,1704881442617,-500.0,0.00030136,2]
[311036653,1704881442627,-975.15,0.00030136,2]
[311036654,1704881442637,-500.0,0.00030136,2]
[311036655,1704881442646,-500.0,0.00030136,7]
[311036657,1704881442656,-500.0,0.00030136,2]
[311036659,1704881442665,-500.0,0.00030136,2]
[311036661,1704881442674,-500.0,0.00030136,2]
[311036663,1704881442685,-500.0,0.00030136,2]
[311036665,1704881442694,-500.0,0.00030136,2]
[311036667,1704881442703,-500.0,0.00030136,2]
[311036669,1704881442712,-539.88719683,0.00030136,2]
[311036671,1704881442721,-1102.05,0.00030136,2]
[311036672,1704881442729,-500.0,0.00030136,2]
[311036675,1704881442739,-500.0,0.00030136,2]
[311036677,1704881442748,-500.0,0.00030136,2]
[311036679,1704881442757,-500.0,0.00030136,2]
[311036681,1704881442766,-500.0,0.00030136,2]
[311036683,1704881442776,-696.03,0.00030136,2]
[311036685,1704881442785,-500.0,0.00030136,2]
[311036687,1704881442795,-836.01,0.00030136,2]
[311036689,1704881442804,-500.0,0.00030136,2]
[311036692,1704881442813,-500.0,0.00030136,2]
[311036694,1704881442822,-500.0,0.00030136,2]
[311036696,1704881442831,-500.0,0.00030136,2]
[311036699,1704881442841,-797.55,0.00030136,2]
[311036703,1704881442850,-500.0,0.00030136,2]
[311036705,1704881442860,-500.0,0.00030136,2]
[311036707,1704881442869,-191.39977299,0.00030136,2]
[311036709,1704881442878,-500.0,0.00030136,2]
[311036711,1704881442888,-500.0,0.00030136,2]
[311036713,1704881442897,-500.0,0.00030136,2]
[311036715,1704881442906,-641.24,0.00030136,2]
[311036717,1704881442915,-500.0,0.00030136,2]
[311036719,1704881442925,-1115.52,0.00030136,2]
[311036721,1704881442936,-876.63,0.00030136,2]
[311036723,1704881442945,-1211.52,0.00030136,2]
[311036725,1704881442955,-500.0,0.00030136,2]
[311036727,1704881442964,-503.26545935,0.00030136,2]
[311036729,1704881442973,-1368.11,0.00030136,2]
[311036731,1704881442982,-500.0,0.00030136,2]
[311036733,1704881442992,-500.0,0.00030136,2]
[311036734,1704881443001,-500.0,0.00030136,2]
[311036736,1704881443011,-861.89,0.00030136,2]
[311036738,1704881443021,-501.83285574,0.00030136,2]
[311036740,1704881443031,-607.44,0.00030136,2]
[311036742,1704881443044,-500.0,0.00030136,2]
[311036744,1704881443054,-724.69,0.00030136,2]
[311036746,1704881443064,-500.0,0.00030136,2]
[311036748,1704881443074,-573.57,0.00030136,2]
[311036750,1704881443083,-500.0,0.00030136,2]
[311036752,1704881443094,-1163.04,0.00030136,2]
[311036755,1704881443104,-500.0,0.00030136,2]
[311036757,1704881443114,-500.0,0.00030136,2]
[311036759,1704881443125,-500.0,0.00030136,2]
[311036761,1704881443135,-500.0,0.00030136,2]
[311036763,1704881443146,-515.4,0.00030136,2]
[311036765,1704881443156,-504.26314258,0.00030136,2]
[311036767,1704881443167,-500.0,0.00030136,2]
[311036769,1704881443179,-1141.27,0.00030136,2]
[311036771,1704881443192,-500.0,0.00030136,2]
[311036774,1704881443202,-500.0,0.00030136,2]
[311036777,1704881443212,-500.0,0.00030136,2]
[311036779,1704881443223,-586.75,0.00030136,2]
[311036781,1704881443233,-500.0,0.00030136,2]
[311036783,1704881443242,-621.83,0.00030136,2]
[311036784,1704881443252,-573.69,0.00030136,2]
[311036786,1704881443263,-822.17,0.00030136,2]
[311036788,1704881443273,-500.0,0.00030136,2]
[311036790,1704881443282,-500.0,0.00030136,2]
[311036792,1704881443292,-500.0,0.00030136,2]
[311036794,1704881443301,-937.86,0.00030136,2]
[311036796,1704881443310,-303.76984279,0.00030136,2]
[311036797,1704881443320,-500.0,0.00030136,2]
[311036798,1704881443329,-500.0,0.00030136,2]
[311036799,1704881443338,-500.0,0.00030136,2]
[311036800,1704881443347,-1084.28,0.00030136,2]
[311036801,1704881443356,-500.0,0.00030136,2]
[311036802,1704881443366,-700.15,0.00030136,2]
[311036803,1704881443375,-1787.75,0.00030136,2]
[311036804,1704881443384,-700.15,0.00030136,2]
[311036805,1704881443394,-700.15,0.00030136,2]
[311036806,1704881443403,-700.15,0.00030136,2]
[311036807,1704881443412,-700.15,0.00030136,2]
[311036808,1704881443423,-700.15,0.00030136,2]
[311036809,1704881443434,-1131.82,0.00030136,2]
[311036810,1704881443443,-700.15,0.00030136,2]
[311036811,1704881443453,-700.15,0.00030136,2]
[311036812,1704881443463,-500.0,0.00030136,2]
[311036813,1704881443472,-700.15,0.00030136,2]
[311036814,1704881443482,-511.77,0.00030136,2]
[311036815,1704881443491,-700.15,0.00030136,2]
[311036816,1704881443501,-500.0,0.00030136,2]
[311036817,1704881443510,-500.0,0.00030136,2]
[311036818,1704881443519,-500.0,0.00030136,2]
[311036819,1704881443529,-500.0,0.00030136,2]
[311036820,1704881443538,-500.0,0.00030136,2]
[311036821,1704881443548,-655.67,0.00030136,2]
[311036822,1704881443558,-1019.21,0.00030136,2]
[311036823,1704881443567,-500.0,0.00030136,2]
[311036824,1704881443577,-500.0,0.00030136,2]
[311036825,1704881443586,-500.0,0.00030136,2]
[311036826,1704881443595,-500.0,0.00030136,2]
[311036827,1704881443605,-575.38,0.00030136,2]
[311036828,1704881443614,-566.78,0.00030136,2]
[311036829,1704881443623,-812.15,0.00030136,2]
[311036830,1704881443633,-500.0,0.00030136,2]
[311036831,1704881443643,-656.51,0.00030136,2]
[311036832,1704881443652,-500.0,0.00030136,2]
[311036833,1704881443661,-500.0,0.00030136,2]
[311036834,1704881443671,-553.14,0.00030136,2]
[311036835,1704881443681,-500.0,0.00030136,2]
[311036836,1704881443692,-673.03,0.00030136,2]
[311036837,1704881443701,-559.56,0.00030136,2]
[311036838,1704881443711,-500.0,0.00030136,2]
[311036839,1704881443721,-653.22,0.00030136,2]
[311036840,1704881443732,-500.0,0.00030136,2]
[311036841,1704881443743,-908.59,0.00030136,2]
[311036842,1704881443753,-500.0,0.00030136,2]
[311036843,1704881443763,-1106.66,0.00030136,2]
[311036844,1704881443773,-500.0,0.00030136,2]
[311036845,1704881443783,-814.69,0.00030136,2]
[311036846,1704881443793,-1245.1,0.00030136,2]
[311036847,1704881443803,-1093.64,0.00030136,2]
[311036848,1704881443813,-501.59377344,0.00030136,2]
[311036849,1704881443822,-500.0,0.00030136,2]
[311036850,1704881443831,-500.0,0.00030136,2]
[311036851,1704881443841,-500.0,0.00030136,2]
[311036852,1704881443850,-1548.31,0.00030136,2]
[311036853,1704881443860,-507.33,0.00030136,2]
[311036854,1704881444052,-500.0,0.00030136,2]
[311036855,1704881444062,-500.0,0.00030136,2]
[311036856,1704881444071,-1081.04,0.00030136,2]
[311036857,1704881444080,-88.68338467,0.00030136,2]
[311036858,1704881444910,-729.40661533,0.00030136,2]
[311036859,1704881444919,-1755.66,0.00030136,2]
[311036860,1704881444929,-598.83,0.00030136,2]
[311036861,1704881444940,-500.0,0.00030136,2]
[311036862,1704881444949,-952.9,0.00030136,2]
[311036863,1704881444958,-897.21,0.00030136,2]
[311036864,1704881444967,-309.61813917,0.00030136,2]
[311036868,1704881446374,-158.18730557,0.00026327,2]
[311036869,1704881446383,-418.0,0.00030136,5]
[311036870,1704881446393,-181.99119559,0.00030136,2]
[311036871,1704881446404,-1055.54066524,0.00030136,2]
[311036872,1704881446413,-500.0,0.00030136,2]
[311036873,1704881446423,-462.32935534,0.00030136,2]
[311036874,1704881446431,-500.0,0.00030136,2]
[311036875,1704881446442,-1.30147826,0.00030136,2]
[311036876,1704881446534,-853.91852174,0.00030136,2]
[311036877,1704881446543,-500.0,0.00030136,2]
[311036878,1704881446552,-1602.76,0.00030136,2]
[311036879,1704881446561,-1000.0,0.00030136,2]
[311036880,1704881446570,-451.24397411,0.00030136,2]
[311036881,1704881446582,-286.81602589,0.00030136,2]
[311036882,1704881446591,-605.09,0.00030136,2]
[311036883,1704881446601,-1491.14,0.00030136,2]
[311036884,1704881446610,-856.65,0.00030136,2]
[311036885,1704881446619,-500.0,0.00030136,2]
[311036886,1704881446629,-500.0,0.00030136,2]
[311036887,1704881446638,-339.26135273,0.00030136,2]
[311036888,1704881446650,-460.87864727,0.00030136,2]
[311036889,1704881446659,-500.0,0.00030136,2]
[311036890,1704881446670,-1064.19,0.00030136,2]
[311036891,1704881446679,-396.24204616,0.00030136,2]
[311036892,1704881446691,-70.05667398,0.00030136,2]
[311036893,1704881446700,-268.59056771,0.00030136,2]
[311036894,1704881446712,-477.77350765,0.00030136,2]
[311036895,1704881446732,-552.16636131,0.00030136,2]
[311036896,1704881446744,-591.72956333,0.00030136,2]
[311036897,1704881446753,-168.47596648,0.00030136,2]
[311036898,1704881447106,-270.17983787,0.00030136,2]
[311036899,1704881447118,-704.37419565,0.00030136,2]
[311036900,1704881447127,-146.8128042,0.00030136,2]
[311036903,1704881448005,-179.2,0.00029435,2]
[311036904,1704881448015,-353.1871958,0.00030136,2]
[311036905,1704881448025,-500.0,0.00030136,2]
[311036906,1704881448034,-889.43,0.00030136,2]
[311036907,1704881448045,-276.22015441,0.00030136,2]
[311036908,1704881448056,-873.97984559,0.00030136,2]
[311036909,1704881448065,-1156.73,0.00030136,2]
[311036910,1704881448074,-835.93,0.00030136,2]
[311036911,1704881448083,-368.46662677,0.00030136,2]
[311036912,1704881448094,-329.05337323,0.00030136,2]
[311036913,1704881448103,-1361.88,0.00030136,2]
[311036914,1704881448112,-500.0,0.00030136,2]
[311036915,1704881448121,-594.07,0.00030136,2]
[311036916,1704881448131,-3263.52,0.00030136,2]
[311036917,1704881448140,-500.0,0.00030136,2]
[311036918,1704881448150,-500.0,0.00030136,2]
[311036919,1704881448159,-1337.07,0.00030136,2]
[311036920,1704881448169,-500.0,0.00030136,2]
[311036921,1704881448178,-500.0,0.00030136,2]
[311036922,1704881448187,-1290.49567754,0.00030136,2]
[311036923,1704881448207,-237.78432246,0.00030136,2]
[311036924,1704881448216,-500.0,0.00030136,2]
[311036925,1704881448225,-1195.1,0.00030136,2]
[311036926,1704881448234,-502.85874541,0.00030136,2]
[311036927,1704881448243,-55.43617873,0.00030136,2]
[311036928,1704881448255,-444.56382127,0.00030136,2]
[311036929,1704881448265,-26.18815675,0.00030136,2]
[311036930,1704881448277,-473.81184325,0.00030136,2]
[311036931,1704881448286,-504.12225402,0.00030136,2]
[311036932,1704881448295,-500.0,0.00030136,2]
[311036933,1704881448305,-691.04,0.00030136,2]
[311036934,1704881448314,-809.81,0.00030136,2]
[311036935,1704881448323,-500.0,0.00030136,2]
[311036936,1704881448332,-97.63660323,0.00030136,2]
[311036937,1704881448344,-402.36339677,0.00030136,2]
[311036938,1704881448354,-297.22660313,0.00030136,2]
[311036939,1704881448375,-204.14339687,0.00030136,2]
[311036940,1704881448385,-63.42357745,0.00030136,2]
[311036943,1704881448397,-693.05642255,0.00030136,2]
[311036945,1704881448406,-500.0,0.00030136,2]
[311036946,1704881448415,-503.35660037,0.00030136,2]
[311036948,1704881448424,-828.4,0.00030136,2]
[311036951,1704881448512,-756.66416867,0.00030136,2]
[311036952,1704881448524,-171.18583133,0.00030136,2]
[311036953,1704881448534,-1319.68,0.00030136,2]
[311036954,1704881448543,-500.0,0.00030136,2]
[311036956,1704881448552,-757.18,0.00030136,2]
[311036958,1704881448561,-500.0,0.00030136,2]
[311036960,1704881448571,-500.0,0.00030136,2]
[311036962,1704881448581,-500.0,0.00030136,2]
[311036964,1704881448590,-861.58,0.00030136,2]
[311036966,1704881448599,-500.0,0.00030136,2]
[311036968,1704881448608,-663.67,0.00030136,2]
[311036970,1704881448618,-500.0,0.00030136,2]
[311036972,1704881448627,-500.80167771,0.00030136,2]
[311036974,1704881448637,-1002.71,0.00030136,2]
[311036976,1704881448646,-547.59,0.00030136,2]
[311036978,1704881448655,-808.99,0.00030136,2]
[311036980,1704881448664,-500.0,0.00030136,2]
[311036982,1704881448673,-1567.45,0.00030136,2]
[311036984,1704881448682,-1166.02,0.00030136,2]
[311036985,1704881448692,-941.01,0.00030136,2]
[311036987,1704881448701,-500.0,0.00030136,2]
[311036988,1704881448711,-500.0,0.00030136,2]
[311036989,1704881448720,-500.0,0.00030136,2]
[311036990,1704881448729,-500.0,0.00030136,2]
[311036991,1704881448739,-500.0,0.00030136,2]
[311036992,1704881448749,-500.0,0.00030136,2]
[311036993,1704881448758,-500.0,0.00030136,2]
[311036994,1704881448767,-1379.18,0.00030136,2]
[311036995,1704881448777,-1090.65,0.00030136,2]
[311036996,1704881448786,-500.0,0.00030136,2]
[311036997,1704881448795,-500.0,0.00030136,2]
[311036998,1704881448805,-500.0,0.00030136,2]
[311036999,1704881448815,-500.0,0.00030136,2]
[311037000,1704881448823,-595.67,0.00030136,2]
[311037001,1704881448833,-516.24,0.00030136,2]
[311037002,1704881448842,-512.3,0.00030136,2]
[311037003,1704881448851,-612.18,0.00030136,2]
[311037004,1704881448859,-211.41249122,0.00030136,2]
[311037005,1704881448873,-288.58750878,0.00030136,2]
[311037006,1704881448882,-500.0,0.00030136,2]
[311037007,1704881448891,-500.0,0.00030136,2]
[311037008,1704881448901,-656.36,0.00030136,2]
[311037009,1704881448911,-775.46,0.00030136,2]
[311037010,1704881448920,-500.0,0.00030136,2]
[311037011,1704881448930,-1427.34,0.00030136,2]
[311037012,1704881448940,-937.49,0.00030136,2]
[311037013,1704881448949,-46.06249122,0.00030136,2]
[311037014,1704881448961,-453.93750878,0.00030136,2]
[311037015,1704881448970,-1028.30827433,0.00030136,2]
[311037016,1704881448982,-494.50172567,0.00030136,2]
[311037017,1704881448991,-339.2973782,0.00030136,2]
[311037018,1704881450873,-158.18730557,0.00027254,2]
[311037019,1704881450882,-281.78533127,0.00029299,2]
[311037020,1704881450892,-418.3632769,0.00029595,2]
[311037021,1704881450904,-2580.55567474,0.00029595,2]
[311037022,1704881450913,-155.0,0.0003,2]
[311037023,1704881450922,-2339.42,0.00030026,10]
[311037024,1704881450931,-166.80815774,0.00030036,2]
[311037025,1704881450942,-1909.67108805,0.00030135,4]
[311037026,1704881450951,-160.7026218,0.00030136,2]
[311037027,1704881450960,-500.0,0.00030136,2]
[311037028,1704881450970,-500.0,0.00030136,2]
[311037029,1704881450979,-500.0,0.00030136,2]
[311037030,1704881450988,-500.0,0.00030136,2]
[311037031,1704881450997,-500.0,0.00030136,2]
[311037032,1704881451006,-500.0,0.00030136,2]
[311037033,1704881451016,-500.0,0.00030136,2]
[311037034,1704881451025,-300.9659116,0.00030136,2]
[311037035,1704881451034,-500.0,0.00030136,2]
[311037036,1704881451046,-292.55498367,0.00030136,2]
[311037037,1704881451055,-500.0,0.00030136,2]
[311037038,1704881451064,-500.0,0.00030136,2]
[311037039,1704881451074,-500.0,0.00030136,2]
[311037040,1704881451083,-1789.84,0.00030136,2]
[311037041,1704881451093,-1298.23,0.00030136,2]
[311037042,1704881451102,-500.0,0.00030136,2]
[311037043,1704881451112,-500.0,0.00030136,2]
[311037044,1704881451122,-1172.03,0.00030136,2]
[311037045,1704881451132,-975.94,0.00030136,2]
[311037046,1704881451142,-180.69846092,0.00030136,2]
[311037047,1704881451152,-500.0,0.00030136,2]
[311037048,1704881451161,-500.0,0.00030136,2]
[311037049,1704881451171,-500.0,0.00030136,2]
[311037050,1704881451181,-500.0,0.00030136,2]
[311037051,1704881451192,-500.0,0.00030136,2]
[311037052,1704881451202,-837.05,0.00030136,2]
[311037053,1704881451212,-500.0,0.00030136,2]
[311037054,1704881451222,-326.36942014,0.00030136,2]
[311037055,1704881451232,-1653.69,0.00030136,2]
[311037056,1704881451241,-1653.69,0.00030136,2]
[311037057,1704881451251,-1574.18,0.00030136,2]
[311037058,1704881451260,-1653.69,0.00030136,2]
[311037059,1704881451270,-1653.69,0.00030136,2]
[311037060,1704881451280,-1653.69,0.00030136,2]
[311037061,1704881451289,-679.67,0.00030136,2]
[311037062,1704881451298,-323.11120041,0.00030136,2]
[311037063,1704881451312,-1330.57879959,0.00030136,2]
[311037064,1704881451322,-1478.54,0.00030136,2]
[311037065,1704881451331,-500.0,0.00030136,2]
[311037066,1704881451341,-261.6861377,0.00030136,2]
[311037067,1704881451354,-1392.0038623,0.00030136,2]
[311037068,1704881451364,-180.57639353,0.00030136,2]
[311037069,1704881451373,-500.0,0.00030136,2]
[311037070,1704881451382,-500.0,0.00030136,2]
[311037071,1704881451392,-500.0,0.00030136,2]
[311037072,1704881451401,-723.27,0.00030136,2]
[311037073,1704881451411,-500.0,0.00030136,2]
[311037074,1704881451420,-887.71,0.00030136,2]
[311037075,1704881451429,-1468.73,0.00030136,2]
[311037076,1704881451441,-665.49,0.00030136,2]
[311037077,1704881451450,-793.04,0.00030136,2]
[311037078,1704881451460,-1509.13,0.00030136,2]
[311037079,1704881451469,-500.0,0.00030136,2]
[311037080,1704881451479,-500.0,0.00030136,2]
[311037081,1704881451488,-500.0,0.00030136,2]
[311037082,1704881451498,-500.0,0.00030136,2]
[311037083,1704881451508,-136.97603972,0.00030136,2]
[311037084,1704881451520,-71.6224694,0.00030136,2]
[311037085,1704881451530,-500.0,0.00030136,2]
[311037086,1704881451540,-500.0,0.00030136,2]
[311037087,1704881451549,-1890.57,0.00030136,2]
[311037088,1704881451558,-500.0,0.00030136,2]
[311037089,1704881451567,-500.0,0.00030136,2]
[311037090,1704881451577,-500.0,0.00030136,2]
[311037091,1704881451587,-566.13,0.00030136,2]
[311037092,1704881451597,-805.28,0.00030136,2]
[311037093,1704881451606,-500.0,0.00030136,2]
[311037094,1704881451615,-947.38,0.00030136,2]
[311037095,1704881451625,-500.0,0.00030136,2]
[311037096,1704881451636,-501.088756,0.00030136,2]
[311037097,1704881451647,-1164.3,0.00030136,2]
[311037098,1704881451656,-652.58,0.00030136,2]
[311037099,1704881451666,-787.08,0.00030136,2]
[311037100,1704881451675,-500.0,0.00030136,2]
[311037101,1704881451685,-500.0,0.00030136,2]
[311037102,1704881451695,-946.02,0.00030136,2]
[311037103,1704881451705,-500.0,0.00030136,2]
[311037104,1704881451714,-500.0,0.00030136,2]
[311037105,1704881451724,-472.47667132,0.00030136,2]
[311037106,1704881451733,-629.54,0.00030136,2]
[311037107,1704881451742,-557.12,0.00030136,2]
[311037108,1704881451752,-500.0,0.00030136,2]
[311037109,1704881451763,-496.69872727,0.00030136,2]
[311037110,1704881451773,-500.0,0.00030136,2]
[311037111,1704881451782,-500.0,0.00030136,2]
[311037112,1704881451791,-929.35,0.00030136,2]
[311037113,1704881451800,-855.51,0.00030136,2]
[311037114,1704881451809,-1435.14,0.00030136,2]
[311037115,1704881451819,-605.35,0.00030136,2]
[311037116,1704881451828,-528.5,0.00030136,2]
[311037117,1704881451838,-230.1812878,0.00030136,2]
[311037118,1704881451847,-500.0,0.00030136,2]
[311037119,1704881451856,-1623.24,0.00030136,2]
[311037120,1704881451866,-500.0,0.00030136,2]
[311037121,1704881451875,-419.2609296,0.00030136,2]
[311037122,1704881451884,-1162.14,0.00030136,2]
[311037123,1704881451893,-408.95883735,0.00030136,2]
[311037124,1704881451903,-1068.12,0.00030136,2]
[311037125,1704881451912,-500.0,0.00030136,2]
[311037126,1704881451922,-4291.06,0.00030136,2]
[311037127,1704881451931,-619.19,0.00030136,2]
[311037128,1704881451941,-500.0,0.00030136,2]
[311037129,1704881451951,-624.45,0.00030136,2]
[311037130,1704881451960,-500.0,0.00030136,2]
[311037131,1704881451969,-1171.87,0.00030136,2]
[311037132,1704881451978,-500.0,0.00030136,2]
[311037133,1704881451987,-1284.53,0.00030136,2]
[311037134,1704881451997,-898.58096912,0.00030136,2]
[311037135,1704881452010,-2421.03239996,0.00030136,2]
[311037136,1704881452121,-281.24663092,0.00030136,2]
[311037137,1704881452131,-837.42,0.00030136,2]
[311037138,1704881452147,-505.73421382,0.00030136,2]
[311037139,1704881452156,-613.07,0.00030136,2]
[311037140,1704881452166,-1715.54,0.00030136,2]
[311037141,1704881452175,-618.55,0.00030136,10]
[311037142,1704881452184,-500.0,0.00030136,2]
[311037143,1704881452195,-1683.11,0.00030136,2]
[311037144,1704881452204,-500.0,0.00030136,2]
[311037145,1704881452214,-2221.01,0.00030136,2]
[311037146,1704881452222,-500.0,0.00030136,2]
[311037147,1704881452231,-500.0,0.00030136,2]
[311037148,1704881452240,-1535.31,0.00030136,2]
[311037149,1704881452249,-725.42,0.00030136,2]
[311037150,1704881452258,-673.49,0.00030136,2]
[311037151,1704881452267,-634.88,0.00030136,2]
[311037152,1704881452276,-3623.0,0.00030136,2]
[311037153,1704881452285,-504.55,0.00030136,2]
[311037154,1704881452294,-549.57,0.00030136,2]
[311037155,1704881452303,-500.0,0.00030136,2]
[311037156,1704881452449,-393.45247002,0.00030136,2]
[311037157,1704881452461,-618.00821424,0.00030136,2]
[311037158,1704881452473,-9.34931574,0.00030136,2]
[311037159,1704881452482,-610.49983233,0.00030136,2]
[311037160,1704881549921,1437.80495975,0.00031,30]
[311037161,1704881601808,317.4491,0.00030036,120]
[311037163,1704882193856,249.28,0.00031,30]
[311037165,1704882234223,1413.0,0.00031,120]
[311037176,1704882557790,165.18,0.00022189,2]
[311037183,1704882584689,155.0,0.00022189,2]
[311037184,1704882585433,401.7531665,0.00021523,2]
[311037185,1704882585461,291.71338211,0.00022189,2]
[311037186,1704882585613,155.0,0.00022189,2]
[311037187,1704882586129,532.55789459,0.00022189,2]
[311037188,1704882586421,234.60743035,0.00022189,2]
[311037189,1704882586540,5639.44671896,0.00022189,2]
[311037190,1704882586563,1775.31380708,0.00022189,2]